fUST/lending_fUST_20260120
["ID","MTS","AMOUNT","RATE_DAILY","PERIOD"]
[402765891,1768895895901,-500.0,0.00027397,120]
[402765892,1768895895956,-500.0,0.00027397,120]
[402765893,1768895896010,-500.0,0.00027397,120]
[402765894,1768895896061,-500.0,0.00027397,120]
[402765895,1768895896114,-500.0,0.00027397,120]
[402765896,1768895896167,-404.54991934,0.00027397,120]
[402765897,1768895896218,-501.44704667,0.00027397,120]
[402765898,1768895896272,-500.0,0.00027397,120]
[402765899,1768895896326,-500.0,0.00027397,120]
[402765900,1768895896380,-500.0,0.00027397,120]
[402765901,1768895896433,-481.63614081,0.00027397,120]
[402765902,1768895896487,-500.0,0.00027397,120]
[402765903,1768895896543,-500.0,0.00027397,120]
[402765904,1768895896596,-500.0,0.00027397,120]
[402765905,1768895896649,-502.64086954,0.00027397,120]
[402765906,1768895896702,-500.0,0.00027397,120]
[402765907,1768895896754,-473.33845876,0.00027397,120]
[402765908,1768895896806,-500.0,0.00027397,120]
[402765909,1768895896858,-500.0,0.00027397,120]
[402765910,1768895896911,-614.8162962,0.00027397,120]
[402765911,1768895896964,-500.0,0.00027397,120]
[402765912,1768895897021,-502.31526039,0.00027397,120]
[402765913,1768895897074,-500.0,0.00027397,120]
[402765914,1768895897129,-500.0,0.00027397,120]
[402765915,1768895897182,-500.0,0.00027397,120]
[402765916,1768895897236,-500.0,0.00027397,120]
[402765917,1768895897288,-500.0,0.00027397,120]
[402765918,1768895897342,-572.28,0.00027397,120]
[402765919,1768895897398,-500.0,0.00027397,120]
[402765920,1768895897453,-501.90217833,0.00027397,120]
[402765921,1768895897509,-500.0,0.00027397,120]
[402765922,1768895897568,-500.0,0.00027397,120]
[402765923,1768895897627,-500.0,0.00027397,120]
[402765924,1768895897683,-500.0,0.00027397,120]
[402765925,1768895897739,-500.0,0.00027397,120]
[402765926,1768895897791,-500.0,0.00027397,120]
[402765927,1768895897847,-500.0,0.00027397,120]
[402765928,1768895898060,-500.0,0.00027397,120]
[402765929,1768895898111,-500.0,0.00027397,120]
[402765930,1768895898165,-500.0,0.00027397,120]
[402765931,1768895898216,-500.0,0.00027397,120]
[402765932,1768895898266,-500.0,0.00027397,120]
[402765933,1768895898315,-524.50706239,0.00027397,120]
[402765934,1768895898365,-500.0,0.00027397,120]
[402765935,1768895898414,-500.0,0.00027397,120]
[402765936,1768895898463,-500.0,0.00027397,120]
[402765937,1768895898511,-500.0,0.00027397,120]
[402765938,1768895898565,-500.0,0.00027397,120]
[402765939,1768895898616,-500.0,0.00027397,120]
[402765940,1768895898665,-500.43337961,0.00027397,120]
[402765941,1768895898716,-500.0,0.00027397,120]
[402765942,1768895898773,-500.0,0.00027397,120]
[402765943,1768895898829,-500.0,0.00027397,120]
[402765944,1768895898883,-500.0,0.00027397,120]
[402765945,1768895898942,-409.52,0.00027397,120]
[402765946,1768895899001,-500.0,0.00027397,120]
[402765947,1768895899061,-500.8277713,0.00027397,120]
[402765948,1768895899120,-500.0,0.00027397,120]
[402765949,1768895899177,-500.0,0.00027397,120]
[402765950,1768895899233,-170.89843035,0.00027397,120]
[402765951,1768895899290,-308.39,0.00027397,120]
[402765952,1768895899346,-510.64584123,0.00027397,120]
[402765953,1768895899398,-500.0,0.00027397,120]
[402765954,1768895899452,-500.0,0.00027397,120]
[402765955,1768895899505,-500.0,0.00027397,120]
[402765956,1768895899559,-446.32050182,0.00027397,120]
[402765957,1768895899612,-284.22938624,0.00027397,120]
[402765958,1768895899670,-500.0,0.00027397,120]
[402765959,1768895899724,-500.0,0.00027397,120]
[402765960,1768895899776,-257.10340837,0.00027397,120]
[402765961,1768895899829,-502.85568376,0.00027397,120]
[402765962,1768895899882,-500.0,0.00027397,120]
[402765963,1768895899936,-500.96006248,0.00027397,120]
[402765964,1768895899993,-500.0,0.00027397,120]
[402765965,1768895900048,-500.0,0.00027397,120]
[402765966,1768895900099,-502.1551474,0.00027397,120]
[402765967,1768895900153,-460.4,0.00027397,120]
[402765968,1768895900208,-500.0,0.00027397,120]
[402765969,1768895900261,-500.0,0.00027397,120]
[402765970,1768895900313,-500.0,0.00027397,120]
[402765971,1768895900365,-483.13527464,0.00027397,120]
[402765972,1768895900414,-500.0,0.00027397,120]
[402765973,1768895900463,-501.96362883,0.00027397,120]
[402765974,1768895900515,-500.0,0.00027397,120]
[402765975,1768895900566,-500.0,0.00027397,120]
[402765976,1768895900625,-254.41,0.00027397,120]
[402765977,1768895900694,-500.0,0.00027397,120]
[402765978,1768895900748,-268.29818833,0.00027397,120]
[402765979,1768895900798,-502.1932453,0.00027397,120]
[402765980,1768895900844,-500.97263652,0.00027397,120]
[402765981,1768895900889,-501.18321627,0.00027397,120]
[402765982,1768895900938,-500.0,0.00027397,120]
[402765983,1768895900987,-310.47580194,0.00027397,120]
[402765984,1768895901046,-500.0,0.00027397,120]
[402765985,1768895901101,-500.0,0.00027397,120]
[402765986,1768895901153,-500.0,0.00027397,120]
[402765987,1768895901201,-537.25,0.00027397,120]
[402765988,1768895901251,-500.0,0.00027397,120]
[402765989,1768895901298,-500.72420996,0.00027397,120]
[402765990,1768895901346,-358.73,0.00027397,120]
[402765991,1768895901393,-500.0,0.00027397,120]
[402765992,1768895901438,-500.0,0.00027397,120]
[402765993,1768895901481,-501.01737475,0.00027397,120]
[402765994,1768895901528,-618.7731387,0.00027397,120]
[402765995,1768895901577,-500.0,0.00027397,120]
[402765996,1768895901627,-500.0,0.00027397,120]
[402765997,1768895901675,-500.0,0.00027397,120]
[402765998,1768895901721,-301.8258184,0.00027397,120]
[402765999,1768895901767,-500.0,0.00027397,120]
[402766000,1768895901812,-500.0,0.00027397,120]
[402766001,1768895901864,-500.0,0.00027397,120]
[402766002,1768895901913,-526.21,0.00027397,120]
[402766003,1768895901965,-500.0,0.00027397,120]
[402766004,1768895902017,-529.79096893,0.00027397,120]
[402766005,1768895902068,-500.0,0.00027397,120]
[402766006,1768895902117,-502.13740167,0.00027397,120]
[402766007,1768895902172,-500.0,0.00027397,120]
[402766008,1768895902222,-500.0,0.00027397,120]
[402766009,1768895902273,-500.0,0.00027397,120]
[402766010,1768895902323,-500.0,0.00027397,120]
[402766011,1768895902370,-500.0,0.00027397,120]
[402766012,1768895902418,-500.0,0.00027397,120]
[402766013,1768895902466,-303.11688605,0.00027397,120]
[402766014,1768895902514,-500.0,0.00027397,120]
[402766015,1768895902568,-500.0,0.00027397,120]
[402766016,1768895902618,-500.0,0.00027397,120]
[402766017,1768895902665,-500.0,0.00027397,120]
[402766018,1768895902713,-200.23416162,0.00027397,120]
[402766019,1768895902757,-502.20795353,0.00027397,120]
[402766020,1768895902801,-568.31207936,0.00027397,120]
[402766021,1768895902844,-500.0,0.00027397,120]
[402766022,1768895903055,-503.86573582,0.00027397,120]
[402766023,1768895903106,-502.11802668,0.00027397,120]
[402766024,1768895903161,-501.8978778,0.00027397,120]
[402766025,1768895903212,-500.0,0.00027397,120]
[402766026,1768895903262,-510.65740533,0.00027397,120]
[402766027,1768895903315,-500.87436526,0.00027397,120]
[402766028,1768895903361,-500.0,0.00027397,120]
[402766029,1768895903407,-500.0,0.00027397,120]
[402766030,1768895903455,-500.0,0.00027397,120]
[402766031,1768895903503,-500.0,0.00027397,120]
[402766032,1768895903552,-500.0,0.00027397,120]
[402766033,1768895903599,-500.0,0.00027397,120]
[402766034,1768895903650,-527.3977853,0.00027397,120]
[402766035,1768895903699,-500.0,0.00027397,120]
[402766036,1768895903746,-500.0,0.00027397,120]
[402766037,1768895903795,-500.75266678,0.00027397,120]
[402766038,1768895903843,-624.52682685,0.00027397,120]
[402766039,1768895903893,-500.0,0.00027397,120]
[402766040,1768895903946,-500.0,0.00027397,120]
[402766041,1768895903997,-501.96288254,0.00027397,120]
[402766042,1768895904052,-500.0,0.00027397,120]
[402766043,1768895904105,-500.0,0.00027397,120]
[402766044,1768895904164,-500.0,0.00027397,120]
[402766045,1768895904218,-491.11392693,0.00027397,120]
[402766046,1768895904274,-500.0,0.00027397,120]
[402766047,1768895904328,-500.0,0.00027397,120]
[402766048,1768895904388,-500.0,0.00027397,120]
[402766049,1768895904441,-509.74837823,0.00027397,120]
[402766050,1768895904497,-489.13135504,0.00027397,120]
[402766051,1768895904550,-500.97185366,0.00027397,120]
[402766052,1768895904604,-500.0,0.00027397,120]
[402766053,1768895904657,-500.0,0.00027397,120]
[402766054,1768895904710,-533.79528305,0.00027397,120]
[402766055,1768895904763,-500.0,0.00027397,120]
[402766056,1768895904817,-500.0,0.00027397,120]
[402766057,1768895904870,-500.0,0.00027397,120]
[402766058,1768895904924,-175.55,0.00027397,120]
[402766059,1768895904976,-500.0,0.00027397,120]
[402766060,1768895905029,-500.0,0.00027397,120]
[402766061,1768895905083,-500.0,0.00027397,120]
[402766062,1768895905135,-500.0,0.00027397,120]
[402766063,1768895905187,-504.64155016,0.00027397,120]
[402766064,1768895905242,-500.0,0.00027397,120]
[402766065,1768895905293,-500.0,0.00027397,120]
[402766066,1768895905344,-500.0,0.00027397,120]
[402766067,1768895905395,-502.44246678,0.00027397,120]
[402766068,1768895905443,-177.39842705,0.00027397,120]
[402766069,1768895905493,-500.0,0.00027397,120]
[402766070,1768895905542,-500.0,0.00027397,120]
[402766071,1768895905596,-500.0,0.00027397,120]
[402766072,1768895905649,-500.0,0.00027397,120]
[402766073,1768895905702,-340.19,0.00027397,120]
[402766074,1768895905752,-578.05360614,0.00027397,120]
[402766075,1768895905801,-502.52089792,0.00027397,120]
[402766076,1768895905848,-500.0,0.00027397,120]
[402766077,1768895905895,-500.0,0.00027397,120]
[402766078,1768895905948,-510.74586649,0.00027397,120]
[402766079,1768895905999,-500.0,0.00027397,120]
[402766080,1768895906050,-500.0,0.00027397,120]
[402766081,1768895906102,-221.20544499,0.00027397,120]
[402766082,1768895906157,-500.0,0.00027397,120]
[402766083,1768895906210,-575.37355352,0.00027397,120]
[402766084,1768895906263,-500.0,0.00027397,120]
[402766085,1768895906318,-500.0,0.00027397,120]
[402766086,1768895906369,-486.98,0.00027397,120]
[402766087,1768895906419,-500.0,0.00027397,120]
[402766088,1768895906468,-170.40370415,0.00027397,120]
[402766089,1768895906520,-500.0,0.00027397,120]
[402766090,1768895906571,-501.01104004,0.00027397,120]
[402766091,1768895906626,-595.46889529,0.00027397,120]
[402766092,1768895906686,-526.68412269,0.00027397,120]
[402766093,1768895906742,-501.40543687,0.00027397,120]
[402766094,1768895906796,-500.0,0.00027397,120]
[402766095,1768895906850,-523.81380062,0.00027397,120]
[402766096,1768895906904,-504.7092255,0.00027397,120]
[402766097,1768895906958,-502.22895802,0.00027397,120]
[402766098,1768895907012,-579.39543656,0.00027397,120]
[402766099,1768895907065,-501.79740351,0.00027397,120]
[402766100,1768895907118,-500.0,0.00027397,120]
[402766101,1768895907175,-593.9915358,0.00027397,120]
[402766102,1768895907229,-538.67546744,0.00027397,120]
[402766103,1768895907282,-500.0,0.00027397,120]
[402766104,1768895907337,-541.50958748,0.00027397,120]
[402766105,1768895907389,-580.62217856,0.00027397,120]
[402766106,1768895907440,-233.47629064,0.00027397,120]
[402766107,1768895907493,-500.0,0.00027397,120]
[402766108,1768895907542,-500.0,0.00027397,120]
[402766109,1768895907597,-501.10541278,0.00027397,120]
[402766110,1768895907650,-502.74408715,0.00027397,120]
[402766111,1768895907699,-596.00950998,0.00027397,120]
[402766112,1768895907747,-500.0,0.00027397,120]
[402766113,1768895907797,-638.42441101,0.00027397,120]
[402766114,1768895907845,-501.90916229,0.00027397,120]
[402766115,1768895907894,-500.0,0.00027397,120]
[402766116,1768895907951,-500.0,0.00027397,120]
[402766117,1768895908146,-503.82293897,0.00027397,120]
[402766118,1768895908202,-500.0,0.00027397,120]
[402766119,1768895908256,-295.15112583,0.00027397,120]
[402766120,1768895908309,-500.0,0.00027397,120]
[402766121,1768895908360,-500.74406073,0.00027397,120]
[402766122,1768895908412,-500.0,0.00027397,120]
[402766123,1768895908465,-501.07942071,0.00027397,120]
[402766124,1768895908516,-500.0,0.00027397,120]
[402766125,1768895908568,-500.0,0.00027397,120]
[402766126,1768895908619,-209.57825353,0.00027397,120]
[402766127,1768895908670,-279.19178246,0.00027397,120]
[402766128,1768895908721,-512.92039636,0.00027397,120]
[402766129,1768895908770,-500.36788358,0.00027397,120]
[402766130,1768895908820,-500.0,0.00027397,120]
[402766131,1768895908867,-500.0,0.00027397,120]
[402766132,1768895908916,-500.0,0.00027397,120]
[402766133,1768895908966,-348.46,0.00027397,120]
[402766134,1768895909017,-572.64387362,0.00027397,120]
[402766135,1768895909066,-558.02434073,0.00027397,120]
[402766136,1768895909118,-500.0,0.00027397,120]
[402766137,1768895909174,-500.0,0.00027397,120]
[402766138,1768895909226,-367.16194874,0.00027397,120]
[402766139,1768895909280,-500.0,0.00027397,120]
[402766140,1768895909331,-501.17190887,0.00027397,120]
[402766141,1768895909380,-525.12226329,0.00027397,120]
[402766142,1768895909429,-581.98895401,0.00027397,120]
[402766143,1768895909478,-502.68408241,0.00027397,120]
[402766144,1768895909533,-500.87751779,0.00027397,120]
[402766145,1768895909586,-501.19345133,0.00027397,120]
[402766146,1768895909639,-500.0,0.00027397,120]
[402766147,1768895909693,-523.52609885,0.00027397,120]
[402766148,1768895909750,-501.65620195,0.00027397,120]
[402766149,1768895909807,-500.0,0.00027397,120]
[402766150,1768895909861,-500.0,0.00027397,120]
[402766151,1768895909916,-307.4824455,0.00027397,120]
[402766152,1768895909970,-628.10006714,0.00027397,120]
[402766153,1768895910025,-500.0,0.00027397,120]
[402766154,1768895910077,-501.22527528,0.00027397,120]
[402766155,1768895910129,-500.0,0.00027397,120]
[402766156,1768895910181,-383.849796,0.00027397,120]
[402766157,1768895910236,-500.0,0.00027397,120]
[402766158,1768895910287,-500.0,0.00027397,120]
[402766159,1768895910335,-502.07861873,0.00027397,120]
[402766160,1768895910382,-209.14965696,0.00027397,120]
[402766161,1768895910436,-500.0,0.00027397,120]
[402766162,1768895910488,-593.53,0.00027397,120]
[402766163,1768895910536,-500.0,0.00027397,120]
[402766164,1768895910583,-331.31488933,0.00027397,120]
[402766165,1768895910631,-500.0,0.00027397,120]
[402766166,1768895910682,-500.0,0.00027397,120]
[402766167,1768895910736,-500.0,0.00027397,120]
[402766168,1768895910792,-500.0,0.00027397,120]
[402766169,1768895910852,-638.10682683,0.00027397,120]
[402766170,1768895910900,-501.74964406,0.00027397,120]
[402766171,1768895910954,-500.0,0.00027397,120]
[402766172,1768895911007,-500.0,0.00027397,120]
[402766173,1768895911060,-500.0,0.00027397,120]
[402766174,1768895911108,-500.0,0.00027397,120]
[402766175,1768895911163,-508.75533487,0.00027397,120]
[402766176,1768895911218,-170.23105947,0.00027397,120]
[402766177,1768895911270,-500.0,0.00027397,120]
[402766178,1768895911320,-625.35602636,0.00027397,120]
[402766179,1768895911369,-500.0,0.00027397,120]
[402766180,1768895911416,-610.7672923,0.00027397,120]
[402766181,1768895911460,-501.25641494,0.00027397,120]
[402766182,1768895911505,-501.02261221,0.00027397,120]
[402766183,1768895911553,-500.0,0.00027397,120]
[402766184,1768895911602,-500.0,0.00027397,120]
[402766185,1768895911651,-171.43467226,0.00027397,120]
[402766186,1768895911696,-500.0,0.00027397,120]
[402766187,1768895911746,-501.86390674,0.00027397,120]
[402766188,1768895911795,-529.40398815,0.00027397,120]
[402766189,1768895911844,-500.0,0.00027397,120]
[402766190,1768895911891,-500.0,0.00027397,120]
[402766191,1768895911940,-500.0,0.00027397,120]
[402766192,1768895911992,-500.0,0.00027397,120]
[402766193,1768895912043,-500.0,0.00027397,120]
[402766194,1768895912092,-321.0763907,0.00027397,120]
[402766195,1768895912140,-500.0,0.00027397,120]
[402766196,1768895912190,-558.4278959,0.00027397,120]
[402766197,1768895912241,-201.83394025,0.00027397,120]
[402766198,1768895912294,-500.0,0.00027397,120]
[402766199,1768895912345,-501.62160127,0.00027397,120]
[402766200,1768895912393,-500.0,0.00027397,120]
[402766201,1768895912440,-561.20391562,0.00027397,120]
[402766202,1768895912491,-500.0,0.00027397,120]
[402766203,1768895912537,-500.0,0.00027397,120]
[402766204,1768895912583,-273.94651562,0.00027397,120]
[402766205,1768895912629,-505.75587264,0.00027397,120]
[402766206,1768895912674,-500.0,0.00027397,120]
[402766207,1768895912720,-186.50064791,0.00027397,120]
[402766208,1768895912769,-500.0,0.00027397,120]
[402766209,1768895912814,-592.29730159,0.00027397,120]
[402766210,1768895912859,-500.0,0.00027397,120]
[402766211,1768895912906,-501.04657403,0.00027397,120]
[402766212,1768895913086,-637.09,0.00027397,120]
[402766213,1768895913135,-502.37561428,0.00027397,120]
[402766214,1768895913187,-501.79638632,0.00027397,120]
[402766215,1768895913237,-500.86577701,0.00027397,120]
[402766216,1768895913286,-500.0,0.00027397,120]
[402766217,1768895913333,-500.0,0.00027397,120]
[402766218,1768895913380,-500.0,0.00027397,120]
[402766219,1768895913426,-500.0,0.00027397,120]
[402766220,1768895913476,-223.78120954,0.00027397,120]
[402766221,1768895913522,-500.0,0.00027397,120]
[402766222,1768895913571,-500.0,0.00027397,120]
[402766223,1768895913623,-479.54403839,0.00027397,120]
[402766224,1768895913675,-500.0,0.00027397,120]
[402766225,1768895913728,-603.96313943,0.00027397,120]
[402766226,1768895913780,-639.21255255,0.00027397,120]
[402766227,1768895913832,-501.23554054,0.00027397,120]
[402766228,1768895913884,-562.10910492,0.00027397,120]
[402766229,1768895913938,-502.59544899,0.00027397,120]
[402766230,1768895913993,-500.0,0.00027397,120]
[402766231,1768895914050,-539.62407194,0.00027397,120]
[402766232,1768895914103,-501.17414908,0.00027397,120]
[402766233,1768895914161,-501.29527633,0.00027397,120]
[402766234,1768895914214,-500.0,0.00027397,120]
[402766235,1768895914268,-500.0,0.00027397,120]
[402766236,1768895914326,-500.0,0.00027397,120]
[402766237,1768895914384,-500.0,0.00027397,120]
[402766238,1768895914436,-380.68091979,0.00027397,120]
[402766239,1768895914488,-348.14,0.00027397,120]
[402766240,1768895914541,-625.75374249,0.00027397,120]
[402766241,1768895914592,-502.18869415,0.00027397,120]
[402766242,1768895914643,-500.0,0.00027397,120]
[402766243,1768895914694,-500.0,0.00027397,120]
[402766244,1768895914745,-501.92248675,0.00027397,120]
[402766245,1768895914796,-500.0,0.00027397,120]
[402766246,1768895914846,-418.8075761,0.00027397,120]
[402766247,1768895914899,-501.60325156,0.00027397,120]
[402766248,1768895914953,-500.0,0.00027397,120]
[402766249,1768895915007,-500.0,0.00027397,120]
[402766250,1768895915059,-500.0,0.00027397,120]
[402766251,1768895915109,-354.28907779,0.00027397,120]
[402766252,1768895915167,-323.5090394,0.00027397,120]
[402766253,1768895915220,-501.08556704,0.00027397,120]
[402766254,1768895915271,-510.84083658,0.00027397,120]
[402766255,1768895915320,-500.0,0.00027397,120]
[402766256,1768895915366,-501.74807758,0.00027397,120]
[402766257,1768895915413,-500.0,0.00027397,120]
[402766258,1768895915462,-500.0,0.00027397,120]
[402766259,1768895915507,-174.40354384,0.00027397,120]
[402766260,1768895915555,-501.45802662,0.00027397,120]
[402766261,1768895915600,-503.34185498,0.00027397,120]
[402766262,1768895915646,-536.1573517,0.00027397,120]
[402766263,1768895915691,-500.0,0.00027397,120]
[402766264,1768895915736,-500.0,0.00027397,120]
[402766265,1768895915781,-500.0,0.00027397,120]
[402766266,1768895915826,-500.0,0.00027397,120]
[402766267,1768895915877,-501.65260429,0.00027397,120]
[402766268,1768895915936,-500.0,0.00027397,120]
[402766269,1768895915997,-153.18154284,0.00027397,120]
[402766270,1768895916052,-500.0,0.00027397,120]
[402766271,1768895916104,-507.43645299,0.00027397,120]
[402766272,1768895916154,-543.21650307,0.00027397,120]
[402766273,1768895916207,-500.0,0.00027397,120]
[402766274,1768895916256,-501.62240937,0.00027397,120]
[402766275,1768895916304,-502.13014646,0.00027397,120]
[402766276,1768895916352,-441.49979919,0.00027397,120]
[402766277,1768895916399,-548.42593572,0.00027397,120]
[402766278,1768895916445,-500.0,0.00027397,120]
[402766279,1768895916492,-500.0,0.00027397,120]
[402766280,1768895916543,-391.87145325,0.00027397,120]
[402766281,1768895916597,-246.59467316,0.00027397,120]
[402766282,1768895916644,-500.96419543,0.00027397,120]
[402766283,1768895916691,-512.78481838,0.00027397,120]
[402766284,1768895916739,-505.00093332,0.00027397,120]
[402766285,1768895916786,-500.0,0.00027397,120]
[402766286,1768895916832,-500.0,0.00027397,120]
[402766287,1768895916882,-185.22883375,0.00027397,120]
[402766288,1768895916932,-501.23036995,0.00027397,120]
[402766289,1768895916980,-501.5336185,0.00027397,120]
[402766290,1768895917028,-532.97112068,0.00027397,120]
[402766291,1768895917076,-500.0,0.00027397,120]
[402766292,1768895917125,-500.0,0.00027397,120]
[402766293,1768895917174,-501.0523724,0.00027397,120]
[402766294,1768895917224,-500.0,0.00027397,120]
[402766295,1768895917273,-559.48362027,0.00027397,120]
[402766296,1768895917322,-500.0,0.00027397,120]
[402766297,1768895917372,-501.62785847,0.00027397,120]
[402766298,1768895917419,-500.6725362,0.00027397,120]
[402766299,1768895917467,-500.0,0.00027397,120]
[402766300,1768895917513,-242.7652533,0.00027397,120]
[402766301,1768895917557,-500.0,0.00027397,120]
[402766302,1768895917600,-361.45849658,0.00027397,120]
[402766303,1768895917644,-529.23911337,0.00027397,120]
[402766304,1768895917686,-500.0,0.00027397,120]
[402766305,1768895917731,-521.19797546,0.00027397,120]
[402766306,1768895917910,-509.52777672,0.00027397,120]
[402766307,1768895917967,-500.0,0.00027397,120]
[402766308,1768895918022,-500.93708775,0.00027397,120]
[402766309,1768895918076,-501.04575542,0.00027397,120]
[402766310,1768895918130,-500.0,0.00027397,120]
[402766311,1768895918182,-306.04216887,0.00027397,120]
[402766312,1768895918236,-501.30440288,0.00027397,120]
[402766313,1768895918289,-500.0,0.00027397,120]
[402766314,1768895918340,-276.00158894,0.00027397,120]
[402766315,1768895918395,-500.0,0.00027397,120]
[402766316,1768895918448,-426.7478097,0.00027397,120]
[402766317,1768895918500,-500.0,0.00027397,120]
[402766318,1768895918554,-500.0,0.00027397,120]
[402766319,1768895918604,-500.0,0.00027397,120]
[402766320,1768895918653,-543.16720875,0.00027397,120]
[402766321,1768895918700,-500.98501162,0.00027397,120]
[402766322,1768895918749,-500.69609898,0.00027397,120]
[402766323,1768895918802,-500.0,0.00027397,120]
[402766324,1768895918854,-500.0,0.00027397,120]
[402766325,1768895918900,-500.0,0.00027397,120]
[402766326,1768895918949,-216.99535631,0.00027397,120]
[402766327,1768895918998,-507.08759167,0.00027397,120]
[402766328,1768895919044,-500.0,0.00027397,120]
[402766329,1768895919091,-514.43725462,0.00027397,120]
[402766330,1768895919141,-500.0,0.00027397,120]
[402766331,1768895919193,-500.0,0.00027397,120]
[402766332,1768895919241,-500.0,0.00027397,120]
[402766333,1768895919287,-500.0,0.00027397,120]
[402766334,1768895919334,-500.0,0.00027397,120]
[402766335,1768895919382,-500.0,0.00027397,120]
[402766336,1768895919430,-357.31930761,0.00027397,120]
[402766337,1768895919479,-271.80680853,0.00027397,120]
[402766338,1768895919530,-500.0,0.00027397,120]
[402766339,1768895919581,-500.0,0.00027397,120]
[402766340,1768895919633,-481.77806442,0.00027397,120]
[402766341,1768895919687,-500.0,0.00027397,120]
[402766342,1768895919740,-500.0,0.00027397,120]
[402766343,1768895919793,-500.0,0.00027397,120]
[402766344,1768895919848,-625.65551144,0.00027397,120]
[402766345,1768895919903,-500.0,0.00027397,120]
[402766346,1768895919960,-500.0,0.00027397,120]
[402766347,1768895920022,-642.05244933,0.00027397,120]
[402766348,1768895920077,-500.0,0.00027397,120]
[402766349,1768895920132,-414.87908447,0.00027397,120]
[402766350,1768895920186,-500.0,0.00027397,120]
[402766351,1768895920243,-501.02897172,0.00027397,120]
[402766352,1768895920297,-500.0,0.00027397,120]
[402766353,1768895920352,-500.0,0.00027397,120]
[402766354,1768895920407,-500.0,0.00027397,120]
[402766355,1768895920459,-553.10413332,0.00027397,120]
[402766356,1768895920510,-500.0,0.00027397,120]
[402766357,1768895920560,-501.16937992,0.00027397,120]
[402766358,1768895920612,-500.0,0.00027397,120]
[402766359,1768895920665,-500.0,0.00027397,120]
[402766360,1768895920716,-500.0,0.00027397,120]
[402766361,1768895920768,-500.0,0.00027397,120]
[402766362,1768895920817,-500.89430477,0.00027397,120]
[402766363,1768895920867,-501.29983231,0.00027397,120]
[402766364,1768895920916,-500.0,0.00027397,120]
[402766365,1768895920966,-500.0,0.00027397,120]
[402766366,1768895921017,-501.33291714,0.00027397,120]
[402766367,1768895921066,-500.0,0.00027397,120]
[402766368,1768895921115,-500.0,0.00027397,120]
[402766369,1768895921170,-501.4942355,0.00027397,120]
[402766370,1768895921220,-500.0,0.00027397,120]
[402766371,1768895921271,-500.0,0.00027397,120]
[402766372,1768895921320,-501.81761874,0.00027397,120]
[402766373,1768895921367,-500.0,0.00027397,120]
[402766374,1768895921413,-516.66119327,0.00027397,120]
[402766375,1768895921457,-500.0,0.00027397,120]
[402766376,1768895921500,-500.0,0.00027397,120]
[402766377,1768895921546,-500.0,0.00027397,120]
[402766378,1768895921592,-503.02066154,0.00027397,120]
[402766379,1768895921637,-500.0,0.00027397,120]
[402766380,1768895921684,-532.20611125,0.00027397,120]
[402766381,1768895921733,-500.0,0.00027397,120]
[402766382,1768895921791,-500.0,0.00027397,120]
[402766383,1768895921842,-502.05046249,0.00027397,120]
[402766384,1768895921894,-500.0,0.00027397,120]
[402766385,1768895921947,-500.0,0.00027397,120]
[402766386,1768895922003,-500.0,0.00027397,120]
[402766387,1768895922056,-500.0,0.00027397,120]
[402766388,1768895922119,-500.0,0.00027397,120]
[402766389,1768895922180,-502.32306357,0.00027397,120]
[402766390,1768895922237,-500.0,0.00027397,120]